[Event "Titled Tuesday Blitz April 25 Early 2023"]
[White "Kohler, Aran"]
[Black "Womacka, Mathias"]
[WhiteFideId "1002856"]
[BlackFideId "4611390"]
[WhiteElo "2289"]
[BlackElo "2377"]
[Result "0-1"]
[Round "09"]
[TimeControl "180+2"]
[Date "2023.04.25"]
[WhiteClock "0:00:04"]
[BlackClock "0:00:17"]

1. f3 {[%clk 0:02:55]}  e5 {[%clk 0:02:58]} 2. Nh3 {[%clk 0:02:54]}  d5 {[%clk 0:02:56]} 3. Nf2 {[%clk 0:02:54]}  f5 {[%clk 0:02:54]} 4. e3 {[%clk 0:02:52]}  Nf6 {[%clk 0:02:54]} 5. g3 {[%clk 0:02:50]}  Bd6 {[%clk 0:02:53]} 6. Bg2 {[%clk 0:02:50]}  O-O {[%clk 0:02:54]} 7. d3 {[%clk 0:02:49]}  f4 {[%clk 0:02:47]} 8. e4 {[%clk 0:02:40]}  d4 {[%clk 0:02:35]} 9. g4 {[%clk 0:02:31]}  h5 {[%clk 0:02:30]} 10. g5 {[%clk 0:02:31]}  Nfd7 {[%clk 0:02:11]} 11. h4 {[%clk 0:02:31]}  c5 {[%clk 0:02:05]} 12. c3 {[%clk 0:02:30]}  Nc6 {[%clk 0:02:03]} 13. Bh3 {[%clk 0:02:20]}  Re8 {[%clk 0:01:53]} 14. Nd2 {[%clk 0:02:20]}  Nf8 {[%clk 0:01:53]} 15. Bxc8 {[%clk 0:02:18]}  Rxc8 {[%clk 0:01:53]} 16. Qb3+ {[%clk 0:02:13]}  Kh7 {[%clk 0:01:50]} 17. Qxb7 {[%clk 0:02:08]}  Ng6 {[%clk 0:01:36]} 18. Qb3 {[%clk 0:01:42]}  Bf8 {[%clk 0:01:31]} 19. Ke2 {[%clk 0:01:39]}  Qd7 {[%clk 0:01:23]} 20. Qc2 {[%clk 0:01:36]}  Red8 {[%clk 0:01:20]} 21. c4 {[%clk 0:01:24]}  Rb8 {[%clk 0:01:15]} 22. b3 {[%clk 0:01:24]}  a5 {[%clk 0:01:08]} 23. Rb1 {[%clk 0:01:12]}  Rb7 {[%clk 0:00:47]} 24. Ba3 {[%clk 0:01:08]}  Rdb8 {[%clk 0:00:46]} 25. Rb2 {[%clk 0:00:51]}  Ra8 {[%clk 0:00:45]} 26. Rbb1 {[%clk 0:00:48]}  Rba7 {[%clk 0:00:45]} 27. Bb2 {[%clk 0:00:35]}  Nb4 {[%clk 0:00:43]} 28. Qd1 {[%clk 0:00:30]}  Nxa2 {[%clk 0:00:43]} 29. Ra1 {[%clk 0:00:30]}  Nb4 {[%clk 0:00:43]} 30. Ra4 {[%clk 0:00:27]}  Nc6 {[%clk 0:00:38]} 31. Qa1 {[%clk 0:00:26]}  Rb7 {[%clk 0:00:38]} 32. Ba3 {[%clk 0:00:20]}  Rab8 {[%clk 0:00:37]} 33. Rb1 {[%clk 0:00:19]}  Nxh4 {[%clk 0:00:34]} 34. Rh1 {[%clk 0:00:14]}  Ng2 {[%clk 0:00:34]} 35. Rxh5+ {[%clk 0:00:14]}  Kg6 {[%clk 0:00:34]} 36. Qh1 {[%clk 0:00:12]}  Ne3 {[%clk 0:00:34]} 37. Rh7 {[%clk 0:00:11]}  Kf7 {[%clk 0:00:27]} 38. Qh5+ {[%clk 0:00:11]}  Ke7 {[%clk 0:00:27]} 39. Rh8 {[%clk 0:00:08]}  Qd6 {[%clk 0:00:20]} 40. Ng4 {[%clk 0:00:06]}  Kd7 {[%clk 0:00:19]} 41. Rg8 {[%clk 0:00:04]}  Kc7 {[%clk 0:00:18]} 42. Qh8 {[%clk 0:00:04]}  Kb6 {[%clk 0:00:17]} 0-1


[Site "https://www.chess.com"]

[Event "Titled Tuesday Blitz April 25 Early 2023"]
[White "Blokhin, Sofia"]
[Black "Fernandez Siles, Luis"]
[WhiteFideId "4508190"]
[BlackFideId "2209420"]
[WhiteElo "1994"]
[BlackElo "2195"]
[Result "1-0"]
[Round "09"]
[TimeControl "180+2"]
[Date "2023.04.25"]
[WhiteClock "0:00:23"]
[BlackClock "0:00:01"]

1. e4 {[%clk 0:03:00]}  c5 {[%clk 0:02:59]} 2. Nf3 {[%clk 0:03:00]}  Nc6 {[%clk 0:02:59]} 3. d4 {[%clk 0:03:00]}  cxd4 {[%clk 0:03:00]} 4. Nxd4 {[%clk 0:03:00]}  Nf6 {[%clk 0:03:01]} 5. Nc3 {[%clk 0:02:59]}  e5 {[%clk 0:03:01]} 6. Ndb5 {[%clk 0:02:58]}  d6 {[%clk 0:03:02]} 7. Nd5 {[%clk 0:02:57]}  Nxd5 {[%clk 0:03:01]} 8. exd5 {[%clk 0:02:58]}  Nb8 {[%clk 0:03:00]} 9. c4 {[%clk 0:02:58]}  Be7 {[%clk 0:03:00]} 10. Bd3 {[%clk 0:02:57]}  a6 {[%clk 0:02:59]} 11. Nc3 {[%clk 0:02:56]}  O-O {[%clk 0:02:58]} 12. O-O {[%clk 0:02:56]}  f5 {[%clk 0:02:58]} 13. f3 {[%clk 0:02:56]}  Nd7 {[%clk 0:02:56]} 14. Be3 {[%clk 0:02:55]}  Bg5 {[%clk 0:02:52]} 15. Bf2 {[%clk 0:02:52]}  Qf6 {[%clk 0:02:43]} 16. Qc2 {[%clk 0:02:47]}  b6 {[%clk 0:02:40]} 17. b4 {[%clk 0:02:46]}  g6 {[%clk 0:02:12]} 18. a4 {[%clk 0:02:45]}  a5 {[%clk 0:02:11]} 19. bxa5 {[%clk 0:02:28]}  Rxa5 {[%clk 0:02:09]} 20. Nb5 {[%clk 0:02:27]}  Nc5 {[%clk 0:02:04]} 21. Be2 {[%clk 0:02:20]}  Bd7 {[%clk 0:01:54]} 22. Bxc5 {[%clk 0:02:17]}  bxc5 {[%clk 0:01:52]} 23. Qc3 {[%clk 0:02:13]}  Rfa8 {[%clk 0:01:42]} 24. Rfb1 {[%clk 0:01:56]}  Bf4 {[%clk 0:01:35]} 25. g3 {[%clk 0:01:51]}  Qg5 {[%clk 0:01:33]} 26. Nxd6 {[%clk 0:01:44]}  Be3+ {[%clk 0:01:19]} 27. Kg2 {[%clk 0:01:39]}  Bd4 {[%clk 0:01:19]} 28. Qb3 {[%clk 0:01:13]}  Bxa1 {[%clk 0:01:11]} 29. Rxa1 {[%clk 0:01:05]}  Rxa4 {[%clk 0:00:41]} 30. Rxa4 {[%clk 0:01:00]}  Rxa4 {[%clk 0:00:41]} 31. Qb8+ {[%clk 0:00:58]}  Kg7 {[%clk 0:00:39]} 32. Qc7 {[%clk 0:00:52]}  Qe7 {[%clk 0:00:37]} 33. Nc8 {[%clk 0:00:48]}  Qe8 {[%clk 0:00:30]} 34. Nb6 {[%clk 0:00:48]}  Ra2 {[%clk 0:00:29]} 35. Nxd7 {[%clk 0:00:45]}  Rxe2+ {[%clk 0:00:24]} 36. Kf1 {[%clk 0:00:45]}  Rb2 {[%clk 0:00:20]} 37. Nxc5+ {[%clk 0:00:29]}  Kg8 {[%clk 0:00:19]} 38. Ne6 {[%clk 0:00:27]}  Qf7 {[%clk 0:00:01]} 39. Qd8+ {[%clk 0:00:23]} 1-0


[Site "https://www.chess.com"]

[Event "Titled Tuesday Blitz April 25 Early 2023"]
[White "ArrestingPieces"]
[Black "Tarnowska, Aleksandra"]
[BlackFideId "1180967"]
[WhiteElo "2347"]
[BlackElo "1776"]
[Result "0-1"]
[Round "09"]
[TimeControl "180+2"]
[Date "2023.04.25"]
[WhiteClock "0:00:30"]
[BlackClock "0:00:05"]

1. d4 {[%clk 0:03:00]}  d5 {[%clk 0:02:59]} 2. Nc3 {[%clk 0:03:01]}  Nf6 {[%clk 0:02:57]} 3. Bf4 {[%clk 0:03:01]}  c6 {[%clk 0:02:56]} 4. e3 {[%clk 0:03:00]}  Bf5 {[%clk 0:02:57]} 5. Nf3 {[%clk 0:03:00]}  e6 {[%clk 0:02:57]} 6. Bd3 {[%clk 0:02:59]}  Bg6 {[%clk 0:02:53]} 7. Ne5 {[%clk 0:02:59]}  Nbd7 {[%clk 0:02:42]} 8. g4 {[%clk 0:02:58]}  Nxe5 {[%clk 0:02:39]} 9. dxe5 {[%clk 0:02:58]}  Nd7 {[%clk 0:02:34]} 10. h4 {[%clk 0:02:58]}  Qc7 {[%clk 0:02:28]} 11. Be2 {[%clk 0:02:51]}  h6 {[%clk 0:02:16]} 12. h5 {[%clk 0:02:47]}  Bh7 {[%clk 0:02:16]} 13. Qd2 {[%clk 0:02:40]}  Nxe5 {[%clk 0:02:15]} 14. O-O-O {[%clk 0:02:28]}  Bd6 {[%clk 0:02:09]} 15. Bg3 {[%clk 0:02:18]}  Qa5 {[%clk 0:01:24]} 16. f4 {[%clk 0:02:10]}  Nd7 {[%clk 0:01:23]} 17. e4 {[%clk 0:02:03]}  Nb6 {[%clk 0:01:08]} 18. f5 {[%clk 0:01:33]}  Bxg3 {[%clk 0:01:07]} 19. fxe6 {[%clk 0:01:13]}  fxe6 {[%clk 0:01:07]} 20. Kb1 {[%clk 0:01:11]}  Be5 {[%clk 0:00:52]} 21. exd5 {[%clk 0:01:08]}  exd5 {[%clk 0:00:39]} 22. Rhe1 {[%clk 0:01:03]}  O-O {[%clk 0:00:38]} 23. Bd3 {[%clk 0:01:02]}  Bxd3 {[%clk 0:00:37]} 24. Qxd3 {[%clk 0:01:03]}  Bxc3 {[%clk 0:00:37]} 25. bxc3 {[%clk 0:01:02]}  Nc4 {[%clk 0:00:38]} 26. Ka1 {[%clk 0:00:59]}  Qa3 {[%clk 0:00:31]} 27. Rb1 {[%clk 0:00:58]}  Rae8 {[%clk 0:00:31]} 28. Rg1 {[%clk 0:00:49]}  Re3 {[%clk 0:00:28]} 29. Qd4 {[%clk 0:00:49]}  Qxc3+ {[%clk 0:00:20]} 30. Qxc3 {[%clk 0:00:49]}  Rxc3 {[%clk 0:00:21]} 31. Rxb7 {[%clk 0:00:49]}  Rxc2 {[%clk 0:00:21]} 32. g5 {[%clk 0:00:50]}  hxg5 {[%clk 0:00:10]} 33. Rxa7 {[%clk 0:00:50]}  Rff2 {[%clk 0:00:07]} 34. Re1 {[%clk 0:00:50]}  Rce2 {[%clk 0:00:06]} 35. Rb1 {[%clk 0:00:48]}  Rb2 {[%clk 0:00:05]} 36. Re1 {[%clk 0:00:46]}  Rbe2 {[%clk 0:00:05]} 37. Rb1 {[%clk 0:00:46]}  Kh7 {[%clk 0:00:06]} 38. h6 {[%clk 0:00:46]}  Kxh6 {[%clk 0:00:05]} 39. Rh1+ {[%clk 0:00:44]}  Kg6 {[%clk 0:00:06]} 40. Rb1 {[%clk 0:00:44]}  Ne5 {[%clk 0:00:06]} 41. Rh1 {[%clk 0:00:42]}  g4 {[%clk 0:00:06]} 42. Ra3 {[%clk 0:00:38]}  Rg2 {[%clk 0:00:05]} 43. Rf1 {[%clk 0:00:37]}  Ref2 {[%clk 0:00:05]} 44. Re1 {[%clk 0:00:38]}  Re2 {[%clk 0:00:06]} 45. Rf1 {[%clk 0:00:38]}  Rgf2 {[%clk 0:00:06]} 46. Rg1 {[%clk 0:00:38]}  Kf6 {[%clk 0:00:05]} 47. Ra8 {[%clk 0:00:37]}  Ke7 {[%clk 0:00:04]} 48. Rb1 {[%clk 0:00:35]}  Kd6 {[%clk 0:00:04]} 49. Rd8+ {[%clk 0:00:34]}  Nd7 {[%clk 0:00:04]} 50. Ra8 {[%clk 0:00:33]}  g3 {[%clk 0:00:05]} 51. Rg1 {[%clk 0:00:29]}  g2 {[%clk 0:00:05]} 52. a4 {[%clk 0:00:30]}  Rf1+ {[%clk 0:00:05]} 0-1


[Site "https://www.chess.com"]

[Event "Titled Tuesday Blitz April 25 Early 2023"]
[White "Zaichenko, Daria"]
[Black "Torres Dominguez, David"]
[WhiteFideId "4197453"]
[BlackFideId "2220857"]
[WhiteElo "2039"]
[BlackElo "1999"]
[Result "1-0"]
[Round "09"]
[TimeControl "180+2"]
[Date "2023.04.25"]
[WhiteClock "0:00:11"]
[BlackClock "0:00:01"]

1. e4 {[%clk 0:02:57]}  Nc6 {[%clk 0:02:05]} 2. d4 {[%clk 0:02:54]}  e5 {[%clk 0:02:04]} 3. d5 {[%clk 0:02:54]}  Nce7 {[%clk 0:02:03]} 4. f4 {[%clk 0:02:52]}  Ng6 {[%clk 0:02:02]} 5. fxe5 {[%clk 0:02:48]}  Qh4+ {[%clk 0:01:59]} 6. g3 {[%clk 0:02:46]}  Qxe4+ {[%clk 0:01:53]} 7. Qe2 {[%clk 0:02:47]}  Qxh1 {[%clk 0:01:44]} 8. Nf3 {[%clk 0:02:46]}  Be7 {[%clk 0:01:32]} 9. Nbd2 {[%clk 0:02:39]}  d6 {[%clk 0:01:28]} 10. e6 {[%clk 0:02:30]}  fxe6 {[%clk 0:01:24]} 11. Kf2 {[%clk 0:02:30]}  Nf6 {[%clk 0:01:15]} 12. h3 {[%clk 0:02:24]}  Ne5 {[%clk 0:01:11]} 13. Nxe5 {[%clk 0:02:13]}  dxe5 {[%clk 0:01:10]} 14. Bg2 {[%clk 0:02:11]}  Bc5+ {[%clk 0:01:05]} 15. Kf3 {[%clk 0:02:07]}  Qg1 {[%clk 0:01:05]} 16. Nb3 {[%clk 0:02:02]}  Bb6 {[%clk 0:01:00]} 17. Bh6 {[%clk 0:01:49]}  e4+ {[%clk 0:01:00]} 18. Kf4 {[%clk 0:01:30]}  g5+ {[%clk 0:00:55]} 19. Kxg5 {[%clk 0:01:16]}  Qe3+ {[%clk 0:00:49]} 20. Qxe3 {[%clk 0:01:16]}  Bxe3+ {[%clk 0:00:50]} 21. Kxf6 {[%clk 0:01:16]}  Bxh6 {[%clk 0:00:50]} 22. dxe6 {[%clk 0:01:15]}  O-O+ {[%clk 0:00:45]} 23. Ke5 {[%clk 0:01:15]}  Re8 {[%clk 0:00:44]} 24. Nd4 {[%clk 0:01:15]}  c5 {[%clk 0:00:43]} 25. Nf5 {[%clk 0:01:15]}  Rxe6+ {[%clk 0:00:43]} 26. Kd5 {[%clk 0:01:15]}  Bf8 {[%clk 0:00:41]} 27. Bxe4 {[%clk 0:01:14]}  Rxe4 {[%clk 0:00:35]} 28. Kxe4 {[%clk 0:01:14]}  Bxf5+ {[%clk 0:00:36]} 29. Kxf5 {[%clk 0:01:15]}  Rd8 {[%clk 0:00:36]} 30. Re1 {[%clk 0:01:12]}  Rd5+ {[%clk 0:00:34]} 31. Ke6 {[%clk 0:01:11]}  Rd6+ {[%clk 0:00:34]} 32. Kf5 {[%clk 0:01:09]}  Kf7 {[%clk 0:00:33]} 33. g4 {[%clk 0:01:09]}  Rf6+ {[%clk 0:00:32]} 34. Kg5 {[%clk 0:01:06]}  Be7 {[%clk 0:00:32]} 35. Kh5 {[%clk 0:00:55]}  Rf3 {[%clk 0:00:32]} 36. h4 {[%clk 0:00:53]}  Rh3 {[%clk 0:00:31]} 37. g5 {[%clk 0:00:53]}  Rf3 {[%clk 0:00:28]} 38. Kh6 {[%clk 0:00:48]}  Rf5 {[%clk 0:00:24]} 39. Kxh7 {[%clk 0:00:44]}  Rf4 {[%clk 0:00:23]} 40. g6+ {[%clk 0:00:22]}  Kf6 {[%clk 0:00:20]} 41. Rh1 {[%clk 0:00:16]}  Bf8 {[%clk 0:00:15]} 42. h5 {[%clk 0:00:16]}  Rg4 {[%clk 0:00:14]} 43. Rf1+ {[%clk 0:00:15]}  Ke7 {[%clk 0:00:15]} 44. h6 {[%clk 0:00:15]}  Bxh6 {[%clk 0:00:11]} 45. Kxh6 {[%clk 0:00:14]}  Rh4+ {[%clk 0:00:04]} 46. Kg7 {[%clk 0:00:12]}  Rh2 {[%clk 0:00:03]} 47. Rf7+ {[%clk 0:00:12]}  Ke8 {[%clk 0:00:03]} 48. Rxb7 {[%clk 0:00:11]}  Rxc2 {[%clk 0:00:01]} 49. Rxa7 {[%clk 0:00:12]}  Rxb2 {[%clk 0:00:01]} 50. a4 {[%clk 0:00:12]}  c4 {[%clk 0:00:01]} 51. Rc7 {[%clk 0:00:11]} 1-0


[Site "https://www.chess.com"]

[Event "Titled Tuesday Blitz April 25 Early 2023"]
[White "Winkels, Marcel"]
[Black "Fuzesabonyilaci"]
[WhiteFideId "1003887"]
[WhiteElo "1900"]
[BlackElo "2307"]
[Result "0-1"]
[Round "09"]
[TimeControl "180+2"]
[Date "2023.04.25"]
[WhiteClock "0:00:21"]
[BlackClock "0:01:12"]

1. d4 {[%clk 0:03:00]}  Nf6 {[%clk 0:02:58]} 2. Nc3 {[%clk 0:03:01]}  d5 {[%clk 0:02:56]} 3. Bf4 {[%clk 0:03:01]}  c6 {[%clk 0:02:54]} 4. e3 {[%clk 0:03:00]}  Bf5 {[%clk 0:02:53]} 5. Nf3 {[%clk 0:02:59]}  h6 {[%clk 0:02:52]} 6. Ne5 {[%clk 0:02:59]}  Nbd7 {[%clk 0:02:50]} 7. Bd3 {[%clk 0:02:44]}  e6 {[%clk 0:02:41]} 8. Bxf5 {[%clk 0:02:42]}  exf5 {[%clk 0:02:42]} 9. O-O {[%clk 0:02:37]}  Be7 {[%clk 0:02:34]} 10. Qf3 {[%clk 0:02:24]}  Ne4 {[%clk 0:02:22]} 11. Nxe4 {[%clk 0:02:04]}  fxe4 {[%clk 0:02:20]} 12. Qg3 {[%clk 0:02:04]}  g5 {[%clk 0:02:07]} 13. Nxd7 {[%clk 0:01:51]}  Qxd7 {[%clk 0:02:08]} 14. Bc7 {[%clk 0:01:36]}  b6 {[%clk 0:02:06]} 15. h4 {[%clk 0:01:30]}  Rc8 {[%clk 0:02:04]} 16. Bb8 {[%clk 0:01:18]}  O-O {[%clk 0:01:45]} 17. hxg5 {[%clk 0:01:14]}  hxg5 {[%clk 0:01:44]} 18. Be5 {[%clk 0:00:55]}  f6 {[%clk 0:01:42]} 19. f3 {[%clk 0:00:55]}  fxe5 {[%clk 0:01:40]} 20. Qxe5 {[%clk 0:00:51]}  Qd6 {[%clk 0:01:35]} 21. f4 {[%clk 0:00:39]}  Qxe5 {[%clk 0:01:21]} 22. dxe5 {[%clk 0:00:24]}  Bc5 {[%clk 0:01:20]} 23. Rae1 {[%clk 0:00:21]}  gxf4 {[%clk 0:01:12]} 0-1


[Site "https://www.chess.com"]

[Event "Titled Tuesday Blitz April 25 Early 2023"]
[White "Melikhov, Evgeny V."]
[Black "Quirke, Jeffrey"]
[WhiteFideId "4122046"]
[BlackFideId "2013029"]
[WhiteElo "2158"]
[BlackElo "2222"]
[Result "1-0"]
[Round "09"]
[TimeControl "180+2"]
[Date "2023.04.25"]
[WhiteClock "0:00:03"]
[BlackClock "0:00:02"]

1. d4 {[%clk 0:03:00]}  e6 {[%clk 0:02:55]} 2. c4 {[%clk 0:03:00]}  b6 {[%clk 0:02:55]} 3. Nc3 {[%clk 0:03:00]}  Bb4 {[%clk 0:02:54]} 4. e4 {[%clk 0:02:59]}  Bb7 {[%clk 0:02:54]} 5. e5 {[%clk 0:02:59]}  Ne7 {[%clk 0:02:42]} 6. Nf3 {[%clk 0:02:55]}  O-O {[%clk 0:02:41]} 7. Bd3 {[%clk 0:02:55]}  f6 {[%clk 0:02:39]} 8. O-O {[%clk 0:02:45]}  Nbc6 {[%clk 0:02:32]} 9. Ne4 {[%clk 0:02:28]}  Nf5 {[%clk 0:02:13]} 10. a3 {[%clk 0:02:24]}  Be7 {[%clk 0:02:11]} 11. exf6 {[%clk 0:02:24]}  gxf6 {[%clk 0:02:07]} 12. d5 {[%clk 0:02:18]}  Ne5 {[%clk 0:01:43]} 13. Nxe5 {[%clk 0:02:16]}  fxe5 {[%clk 0:01:44]} 14. Qg4+ {[%clk 0:02:05]}  Kh8 {[%clk 0:01:42]} 15. Ng5 {[%clk 0:01:58]}  Qe8 {[%clk 0:01:17]} 16. dxe6 {[%clk 0:01:05]}  dxe6 {[%clk 0:01:15]} 17. Nxe6 {[%clk 0:00:54]}  Rg8 {[%clk 0:01:14]} 18. Qxf5 {[%clk 0:00:46]}  Rxg2+ {[%clk 0:01:13]} 19. Kh1 {[%clk 0:00:43]}  Rxf2+ {[%clk 0:00:35]} 20. Kg1 {[%clk 0:00:35]}  Rxf5 {[%clk 0:00:27]} 21. Rxf5 {[%clk 0:00:34]}  Bc5+ {[%clk 0:00:20]} 22. Nxc5 {[%clk 0:00:32]}  bxc5 {[%clk 0:00:20]} 23. Bg5 {[%clk 0:00:30]}  Rd8 {[%clk 0:00:16]} 24. Raf1 {[%clk 0:00:17]}  Rxd3 {[%clk 0:00:14]} 25. Rf8+ {[%clk 0:00:16]}  Qxf8 {[%clk 0:00:14]} 26. Rxf8+ {[%clk 0:00:17]}  Kg7 {[%clk 0:00:15]} 27. Re8 {[%clk 0:00:16]}  e4 {[%clk 0:00:09]} 28. Re7+ {[%clk 0:00:13]}  Kg6 {[%clk 0:00:10]} 29. Rxc7 {[%clk 0:00:13]}  Ba6 {[%clk 0:00:09]} 30. Rc6+ {[%clk 0:00:12]}  Kxg5 {[%clk 0:00:08]} 31. Rxa6 {[%clk 0:00:12]}  Kf4 {[%clk 0:00:08]} 32. Kf2 {[%clk 0:00:06]}  Rd2+ {[%clk 0:00:07]} 33. Ke1 {[%clk 0:00:06]}  Rxb2 {[%clk 0:00:07]} 34. Rxa7 {[%clk 0:00:06]}  Ke3 {[%clk 0:00:07]} 35. Kd1 {[%clk 0:00:05]}  Rxh2 {[%clk 0:00:07]} 36. a4 {[%clk 0:00:04]}  h5 {[%clk 0:00:06]} 37. a5 {[%clk 0:00:04]}  h4 {[%clk 0:00:06]} 38. a6 {[%clk 0:00:04]}  h3 {[%clk 0:00:06]} 39. Rh7 {[%clk 0:00:04]}  Kd3 {[%clk 0:00:02]} 40. Kc1 {[%clk 0:00:03]} 1-0


[Site "https://www.chess.com"]

[Event "Titled Tuesday Blitz April 25 Early 2023"]
[White "GregLeBarbare"]
[Black "Albuquerque Junior,Wellington S."]
[BlackFideId "2151480"]
[WhiteElo "2164"]
[BlackElo "2109"]
[Result "0-1"]
[Round "09"]
[TimeControl "180+2"]
[Date "2023.04.25"]
[WhiteClock "0:00:03"]
[BlackClock "0:00:08"]

1. d4 {[%clk 0:02:54]}  Nf6 {[%clk 0:02:59]} 2. Bf4 {[%clk 0:02:52]}  d6 {[%clk 0:02:58]} 3. Nf3 {[%clk 0:02:51]}  g6 {[%clk 0:02:57]} 4. c3 {[%clk 0:02:51]}  Bg7 {[%clk 0:02:57]} 5. Nbd2 {[%clk 0:02:52]}  O-O {[%clk 0:02:53]} 6. h3 {[%clk 0:02:53]}  b6 {[%clk 0:02:53]} 7. e4 {[%clk 0:02:53]}  Bb7 {[%clk 0:02:48]} 8. Bd3 {[%clk 0:02:51]}  e5 {[%clk 0:02:34]} 9. Be3 {[%clk 0:02:11]}  exd4 {[%clk 0:02:29]} 10. cxd4 {[%clk 0:02:12]}  Re8 {[%clk 0:02:23]} 11. Qc2 {[%clk 0:01:53]}  Qe7 {[%clk 0:02:00]} 12. d5 {[%clk 0:01:51]}  Na6 {[%clk 0:01:41]} 13. a3 {[%clk 0:01:50]}  Nc5 {[%clk 0:01:30]} 14. Bb5 {[%clk 0:01:47]}  Rf8 {[%clk 0:01:13]} 15. Bxc5 {[%clk 0:01:46]}  bxc5 {[%clk 0:01:13]} 16. O-O {[%clk 0:01:46]}  Rab8 {[%clk 0:01:02]} 17. Bd3 {[%clk 0:01:31]}  Nh5 {[%clk 0:00:57]} 18. Rfe1 {[%clk 0:01:28]}  Bc8 {[%clk 0:00:27]} 19. Nc4 {[%clk 0:01:23]}  f6 {[%clk 0:00:17]} 20. Bf1 {[%clk 0:01:16]}  Bd7 {[%clk 0:00:16]} 21. Qd2 {[%clk 0:01:08]}  g5 {[%clk 0:00:12]} 22. g3 {[%clk 0:01:06]}  Bb5 {[%clk 0:00:11]} 23. Na5 {[%clk 0:00:33]}  Bxf1 {[%clk 0:00:10]} 24. Kxf1 {[%clk 0:00:32]}  Qd7 {[%clk 0:00:11]} 25. Kg2 {[%clk 0:00:32]}  Rb6 {[%clk 0:00:05]} 26. Nc4 {[%clk 0:00:31]}  Rbb8 {[%clk 0:00:03]} 27. Qe2 {[%clk 0:00:25]}  g4 {[%clk 0:00:03]} 28. hxg4 {[%clk 0:00:25]}  Qxg4 {[%clk 0:00:04]} 29. Qe3 {[%clk 0:00:20]}  Kh8 {[%clk 0:00:03]} 30. Rh1 {[%clk 0:00:20]}  Rg8 {[%clk 0:00:03]} 31. Rh4 {[%clk 0:00:20]}  Qg6 {[%clk 0:00:03]} 32. Rah1 {[%clk 0:00:20]}  Bh6 {[%clk 0:00:03]} 33. Qxh6 {[%clk 0:00:15]}  Qxh6 {[%clk 0:00:03]} 34. Rxh5 {[%clk 0:00:16]}  Qg7 {[%clk 0:00:03]} 35. Ne3 {[%clk 0:00:15]}  Rxb2 {[%clk 0:00:02]} 36. Nf5 {[%clk 0:00:16]}  Rxf2+ {[%clk 0:00:02]} 37. Kxf2 {[%clk 0:00:16]}  Qd7 {[%clk 0:00:03]} 38. Rxh7+ {[%clk 0:00:12]}  Qxh7 {[%clk 0:00:04]} 39. Rxh7+ {[%clk 0:00:12]}  Kxh7 {[%clk 0:00:05]} 40. Nd2 {[%clk 0:00:10]}  Rb8 {[%clk 0:00:05]} 41. Nc4 {[%clk 0:00:10]}  Rb3 {[%clk 0:00:05]} 42. Na5 {[%clk 0:00:09]}  Kg6 {[%clk 0:00:06]} 43. Nc6 {[%clk 0:00:10]}  Rxa3 {[%clk 0:00:06]} 44. Nce7+ {[%clk 0:00:09]}  Kf7 {[%clk 0:00:06]} 45. Kg2 {[%clk 0:00:09]}  a5 {[%clk 0:00:06]} 46. Kh3 {[%clk 0:00:09]}  a4 {[%clk 0:00:07]} 47. Kg4 {[%clk 0:00:09]}  Ra2 {[%clk 0:00:07]} 48. Nc6 {[%clk 0:00:03]}  a3 {[%clk 0:00:07]} 49. Nh6+ {[%clk 0:00:02]}  Kg6 {[%clk 0:00:06]} 50. Ng8 {[%clk 0:00:01]}  Rb2 {[%clk 0:00:06]} 51. Nge7+ {[%clk 0:00:02]}  Kf7 {[%clk 0:00:07]} 52. Kf5 {[%clk 0:00:01]}  a2 {[%clk 0:00:07]} 53. g4 {[%clk 0:00:02]}  a1=Q {[%clk 0:00:08]} 54. g5 {[%clk 0:00:03]}  Qf1+ {[%clk 0:00:08]} 0-1


[Site "https://www.chess.com"]